fUST/lending_fUST_20250719
["ID","MTS","AMOUNT","RATE_DAILY","PERIOD"]
[373152474,1752886241587,-460.0,0.00016986,2]
[373152475,1752886241596,-917.31,0.00016986,2]
[373152476,1752886241606,-460.0,0.00016986,2]
[373152477,1752886241615,-460.0,0.00016986,2]
[373152478,1752886241624,-460.0,0.00016986,2]
[373152479,1752886241634,-460.0,0.00016986,2]
[373152480,1752886241643,-522.77,0.00016986,2]
[373152481,1752886241652,-460.0,0.00016986,2]
[373152482,1752886241662,-460.0,0.00016986,2]
[373152483,1752886241672,-460.0,0.00016986,2]
[373152484,1752886241681,-460.0,0.00016986,2]
[373152485,1752886241691,-460.0,0.00016986,2]
[373152486,1752886241701,-460.0,0.00016986,2]
[373152487,1752886241710,-460.0,0.00016986,2]
[373152488,1752886241719,-460.0,0.00016986,2]
[373152489,1752886241729,-460.0,0.00016986,2]
[373152490,1752886241739,-1094.52,0.00016986,2]
[373152491,1752886241748,-1520.39,0.00016986,2]
[373152492,1752886241758,-460.0,0.00016986,2]
[373152493,1752886241768,-694.12,0.00016986,2]
[373152494,1752886241778,-460.0,0.00016986,2]
[373152495,1752886241787,-460.0,0.00016986,2]
[373152496,1752886241797,-473.39,0.00016986,2]
[373152497,1752886241807,-2534.46,0.00016986,2]
[373152498,1752886241816,-460.0,0.00016986,2]
[373152499,1752886241826,-460.0,0.00016986,2]
[373152500,1752886241836,-460.0,0.00016986,2]
[373152501,1752886241846,-460.0,0.00016986,2]
[373152502,1752886241856,-460.0,0.00016986,2]
[373152503,1752886241866,-460.0,0.00016986,2]
[373152504,1752886241875,-460.0,0.00016986,2]
[373152505,1752886241885,-460.0,0.00016986,2]
[373152506,1752886241895,-460.0,0.00016986,2]
[373152507,1752886241905,-443.68052948,0.00016986,2]
[373152508,1752886241914,-460.0,0.00016986,2]
[373152509,1752886241924,-460.0,0.00016986,2]
[373152510,1752886241934,-466.08153271,0.00016986,2]
[373152511,1752886241943,-460.0,0.00016986,2]
[373152512,1752886241953,-460.0,0.00016986,2]
[373152513,1752886241962,-1302.06,0.00016986,2]
[373152514,1752886241972,-460.0,0.00016986,2]
[373152515,1752886241982,-460.0,0.00016986,2]
[373152516,1752886241991,-460.0,0.00016986,2]
[373152517,1752886242001,-460.0,0.00016986,2]
[373152518,1752886242010,-460.0,0.00016986,2]
[373152519,1752886242020,-460.0,0.00016986,2]
[373152520,1752886242030,-460.0,0.00016986,2]
[373152521,1752886242039,-460.0,0.00016986,2]
[373152522,1752886242049,-460.0,0.00016986,2]
[373152523,1752886242058,-460.0,0.00016986,2]
[373152524,1752886242068,-460.0,0.00016986,2]
[373152525,1752886242078,-460.0,0.00016986,2]
[373152526,1752886242088,-460.0,0.00016986,2]
[373152527,1752886242098,-460.0,0.00016986,2]
[373152528,1752886242108,-460.0,0.00016986,2]
[373152529,1752886242118,-460.0,0.00016986,2]
[373152530,1752886242127,-460.0,0.00016986,2]
[373152531,1752886242249,-460.0,0.00016986,2]
[373152532,1752886242260,-228.25636124,0.00016986,2]
[373152533,1752886242270,-460.0,0.00016986,2]
[373152534,1752886242280,-460.0,0.00016986,2]
[373152535,1752886242289,-460.0,0.00016986,2]
[373152536,1752886242298,-460.0,0.00016986,2]
[373152537,1752886242308,-460.0,0.00016986,2]
[373152538,1752886242318,-1036.57,0.00016986,2]
[373152539,1752886242329,-460.0,0.00016986,2]
[373152540,1752886242340,-460.0,0.00016986,2]
[373152541,1752886242350,-460.0,0.00016986,2]
[373152542,1752886242360,-460.0,0.00016986,2]
[373152543,1752886242370,-516.59,0.00016986,2]
[373152544,1752886242381,-460.0,0.00016986,2]
[373152545,1752886242392,-1224.83,0.00016986,2]
[373152546,1752886242404,-460.0,0.00016986,2]
[373152547,1752886242413,-460.0,0.00016986,2]
[373152548,1752886242423,-1354.52,0.00016986,2]
[373152549,1752886242432,-460.0,0.00016986,2]
[373152550,1752886242443,-460.0,0.00016986,2]
[373152551,1752886242452,-813.15,0.00016986,2]
[373152552,1752886242462,-3359.4,0.00016986,2]
[373152553,1752886242474,-460.0,0.00016986,2]
[373152554,1752886242483,-460.0,0.00016986,2]
[373152555,1752886242493,-460.0,0.00016986,2]
[373152556,1752886242503,-2239.47,0.00016986,2]
[373152557,1752886242512,-460.0,0.00016986,2]
[373152558,1752886242521,-460.0,0.00016986,2]
[373152559,1752886242531,-460.0,0.00016986,2]
[373152560,1752886242540,-460.0,0.00016986,2]
[373152561,1752886242549,-460.0,0.00016986,2]
[373152562,1752886242559,-1200.61,0.00016986,2]
[373152563,1752886242569,-541.94641902,0.00016986,2]
[373152564,1752886242581,-460.0,0.00016986,2]
[373152565,1752886242591,-460.0,0.00016986,2]
[373152566,1752886242600,-460.0,0.00016986,2]
[373152567,1752886242609,-460.0,0.00016986,2]
[373152568,1752886242619,-484.74,0.00016986,2]
[373152569,1752886242628,-460.0,0.00016986,2]
[373152570,1752886242638,-460.0,0.00016986,2]
[373152571,1752886242648,-460.0,0.00016986,2]
[373152572,1752886242657,-616.28,0.00016986,2]
[373152573,1752886242666,-500.02925357,0.00016986,2]
[373152574,1752886242675,-513.42,0.0001725,3]
[373152575,1752886242685,-256.71,0.0001725,3]
[373152576,1752886242694,-770.15,0.0001725,3]
[373152577,1752886242704,-460.0,0.00017259,2]
[373152578,1752886242714,-460.0,0.00017259,2]
[373152579,1752886242724,-460.0,0.00017259,2]
[373152580,1752886242733,-460.0,0.0001726,2]
[373152581,1752886242743,-1157.36,0.0001726,2]
[373152582,1752886242752,-460.0,0.0001726,2]
[373152583,1752886242761,-460.0,0.0001726,2]
[373152584,1752886242771,-460.0,0.0001726,2]
[373152585,1752886242781,-463.69,0.0001726,2]
[373152586,1752886242790,-460.0,0.0001726,2]
[373152587,1752886242800,-460.0,0.0001726,2]
[373152588,1752886242809,-460.0,0.0001726,2]
[373152589,1752886242819,-460.0,0.0001726,2]
[373152590,1752886242830,-460.0,0.0001726,2]
[373152591,1752886242839,-460.0,0.0001726,2]
[373152592,1752886242849,-460.0,0.0001726,2]
[373152593,1752886242858,-460.0,0.0001726,2]
[373152594,1752886242867,-460.0,0.0001726,2]
[373152595,1752886242877,-917.31,0.0001726,2]
[373152596,1752886242886,-460.0,0.0001726,2]
[373152598,1752886242896,-460.0,0.0001726,2]
[373152599,1752886242908,-460.0,0.0001726,2]
[373152600,1752886242917,-460.0,0.0001726,2]
[373152601,1752886242927,-460.0,0.0001726,2]
[373152602,1752886242936,-460.0,0.0001726,2]
[373152603,1752886242946,-460.0,0.0001726,2]
[373152604,1752886242955,-460.0,0.0001726,2]
[373152605,1752886242965,-460.0,0.0001726,2]
[373152606,1752886242974,-460.0,0.0001726,2]
[373152607,1752886242983,-326.33617649,0.0001726,2]
[373152608,1752886242993,-1094.52,0.0001726,2]
[373152609,1752886243001,-1520.39,0.0001726,2]
[373152610,1752886243011,-460.0,0.0001726,2]
[373152611,1752886243021,-694.12,0.0001726,2]
[373152613,1752886243030,-460.0,0.0001726,2]
[373152614,1752886243039,-460.0,0.0001726,2]
[373152615,1752886243049,-473.39,0.0001726,2]
[373152616,1752886243058,-2534.46,0.0001726,2]
[373152617,1752886243068,-460.0,0.0001726,2]
[373152618,1752886243078,-460.0,0.0001726,2]
[373152619,1752886243088,-460.0,0.0001726,2]
[373152620,1752886243097,-460.0,0.0001726,2]
[373152621,1752886243107,-460.0,0.0001726,2]
[373152622,1752886243117,-460.0,0.0001726,2]
[373152623,1752886243127,-460.0,0.0001726,2]
[373152624,1752886243137,-460.0,0.0001726,2]
[373152625,1752886243146,-460.0,0.0001726,2]
[373152626,1752886243156,-460.0,0.0001726,2]
[373152627,1752886243166,-460.0,0.0001726,2]
[373152628,1752886243175,-460.0,0.0001726,2]
[373152629,1752886243185,-460.0,0.0001726,2]
[373152630,1752886243195,-1302.06,0.0001726,2]
[373152631,1752886243205,-460.0,0.0001726,2]
[373152632,1752886243215,-460.0,0.0001726,2]
[373152633,1752886243225,-430.74476964,0.0001726,2]
[373152634,1752886243235,-185.45288124,0.0001726,2]
[373152635,1752886243244,-460.0,0.0001726,2]
[373152636,1752886243253,-460.0,0.0001726,2]
[373152637,1752886243263,-460.0,0.0001726,2]
[373152638,1752886243272,-460.0,0.0001726,2]
[373152639,1752886243281,-460.0,0.0001726,2]
[373152640,1752886243290,-460.0,0.0001726,2]
[373152641,1752886243299,-460.0,0.0001726,2]
[373152642,1752886243309,-460.0,0.0001726,2]
[373152643,1752886243319,-460.0,0.0001726,2]
[373152644,1752886243330,-460.0,0.0001726,2]
[373152645,1752886243340,-460.0,0.0001726,2]
[373152646,1752886243349,-460.0,0.0001726,2]
[373152647,1752886243358,-460.0,0.0001726,2]
[373152648,1752886243367,-460.0,0.0001726,2]
[373152649,1752886243377,-460.0,0.0001726,2]
[373152650,1752886243386,-460.0,0.0001726,2]
[373152651,1752886243399,-460.0,0.0001726,2]
[373152652,1752886243409,-1036.57,0.0001726,2]
[373152653,1752886243418,-460.0,0.0001726,2]
[373152654,1752886243427,-460.0,0.0001726,2]
[373152655,1752886243438,-460.0,0.0001726,2]
[373152656,1752886243447,-460.0,0.0001726,2]
[373152657,1752886243456,-516.59,0.0001726,2]
[373152658,1752886243466,-460.0,0.0001726,2]
[373152659,1752886243476,-1224.83,0.0001726,2]
[373152660,1752886243486,-460.0,0.0001726,2]
[373152661,1752886243495,-1354.52,0.0001726,2]
[373152662,1752886243504,-460.0,0.0001726,2]
[373152663,1752886243514,-460.0,0.0001726,2]
[373152664,1752886243523,-813.15,0.0001726,2]
[373152665,1752886243533,-3359.4,0.0001726,2]
[373152666,1752886243542,-460.0,0.0001726,2]
[373152667,1752886243551,-460.0,0.0001726,2]
[373152668,1752886243561,-460.0,0.0001726,2]
[373152669,1752886243571,-2239.47,0.0001726,2]
[373152670,1752886243582,-460.0,0.0001726,2]
[373152671,1752886243592,-460.0,0.0001726,2]
[373152672,1752886243601,-1200.61,0.0001726,2]
[373152673,1752886243610,-460.0,0.0001726,2]
[373152674,1752886243619,-460.0,0.0001726,2]
[373152675,1752886243629,-460.0,0.0001726,2]
[373152676,1752886243638,-484.74,0.0001726,2]
[373152677,1752886243647,-490.26855167,0.0001726,2]
[373152678,1752886243658,-460.0,0.0001726,2]
[373152679,1752886243669,-460.0,0.0001726,2]
[373152680,1752886243678,-616.28,0.0001726,2]
[373152681,1752886243687,-500.0,0.00017288,2]
[373152682,1752886243696,-500.0,0.00017288,2]
[373152683,1752886243706,-434.8876236,0.00017288,2]
[373152684,1752886243715,-500.0,0.00017288,2]
[373152685,1752886243724,-500.20954287,0.00017288,2]
[373152686,1752886243734,-500.0,0.00017288,2]
[373152687,1752886243743,-500.0,0.00017288,2]
[373152688,1752886243752,-500.0,0.00017334,2]
[373152689,1752886243761,-500.0,0.00017334,2]
[373152690,1752886243771,-1730.61,0.000174,2]
[373152691,1752886243781,-183.0,0.00017425,3]
[373152692,1752886243791,-1298.088371,0.00017434,2]
[373152693,1752886243800,-500.0,0.00017447,2]
[373152694,1752886243809,-500.0,0.0001745,2]
[373152695,1752886243819,-155.1452353,0.0001745,2]
[373152696,1752886243830,-500.0,0.0001745,2]
[373152697,1752886243839,-158.06559516,0.0001745,2]
[373152698,1752886243848,-500.0,0.0001745,2]
[373152699,1752886243857,-500.0,0.0001745,2]
[373152700,1752886243867,-514.35587213,0.0001745,2]
[373152701,1752886243877,-433.59906478,0.0001745,2]
[373152702,1752886243891,-500.5554329,0.0001745,2]
[373152703,1752886243901,-500.0,0.0001745,2]
[373152704,1752886243910,-500.0,0.0001745,2]
[373152705,1752886243919,-500.0,0.0001745,2]
[373152706,1752886243928,-500.0,0.0001745,2]
[373152707,1752886243938,-500.0,0.0001745,2]
[373152708,1752886243947,-500.0,0.0001745,2]
[373152709,1752886243956,-500.0,0.0001745,2]
[373152710,1752886243965,-500.0,0.0001745,2]
[373152711,1752886243975,-500.0,0.0001745,2]
[373152712,1752886243985,-500.0,0.00017481,2]
[373152713,1752886243994,-500.0,0.00017481,2]
[373152714,1752886244006,-500.0,0.00017481,2]
[373152715,1752886244015,-500.0,0.00017485,2]
[373152716,1752886244025,-212.74842167,0.00017485,2]
[373152717,1752886244034,-500.0,0.00017498,2]
[373152718,1752886244043,-839.30593155,0.00017499,2]
[373152719,1752886244053,-215.63268315,0.00017499,2]
[373152720,1752886244062,-160.0,0.00017499,2]
[373152721,1752886244072,-12610.43989422,0.00017499,2]
[373152722,1752886244084,-476.25663856,0.00017499,2]
[373152723,1752886244095,-230.89969799,0.00017499,2]
[373152724,1752886244104,-160.0,0.00017499,2]
[373152725,1752886244114,-525.75194068,0.00017499,2]
[373152726,1752886244125,-214.4881157,0.00017499,2]
[373152727,1752886244135,-160.0,0.00017499,2]
[373152728,1752886244146,-160.0,0.00017499,2]
[373152729,1752886244155,-160.0,0.00017499,2]
[373152730,1752886244165,-160.0,0.00017499,2]
[373152731,1752886244174,-334.87578008,0.00017533,3]
[373152732,1752886244183,-331.20809396,0.00017533,2]
[373152733,1752886244193,-460.0,0.00017533,2]
[373152734,1752886244203,-460.0,0.00017533,2]
[373152735,1752886244212,-1157.36,0.00017534,2]
[373152736,1752886244221,-153.10678296,0.00017534,2]
[373152737,1752886244231,-460.0,0.00017534,2]
[373152738,1752886244240,-460.0,0.00017534,2]
[373152739,1752886244250,-460.0,0.00017534,2]
[373152740,1752886244259,-460.0,0.00017534,2]
[373152741,1752886244269,-460.0,0.00017534,2]
[373152742,1752886244279,-460.0,0.00017534,2]
[373152743,1752886244289,-460.0,0.00017534,2]
[373152744,1752886244298,-460.0,0.00017534,2]
[373152745,1752886244307,-460.0,0.00017534,2]
[373152746,1752886244317,-460.0,0.00017534,2]
[373152747,1752886244327,-917.31,0.00017534,2]
[373152748,1752886244339,-460.0,0.00017534,2]
[373152749,1752886244349,-469.85442136,0.00017534,2]
[373152750,1752886244358,-460.0,0.00017534,2]
[373152751,1752886244367,-460.0,0.00017534,2]
[373152752,1752886244377,-460.0,0.00017534,2]
[373152753,1752886244386,-460.0,0.00017534,2]
[373152754,1752886244400,-460.0,0.00017534,2]
[373152755,1752886244411,-460.0,0.00017534,2]
[373152756,1752886244422,-460.0,0.00017534,2]
[373152757,1752886244431,-1094.52,0.00017534,2]
[373152758,1752886244442,-1520.39,0.00017534,2]
[373152759,1752886244452,-460.0,0.00017534,2]
[373152760,1752886244462,-694.12,0.00017534,2]
[373152761,1752886244475,-460.0,0.00017534,2]
[373152762,1752886244485,-473.39,0.00017534,2]
[373152763,1752886244494,-2534.46,0.00017534,2]
[373152764,1752886244505,-460.0,0.00017534,2]
[373152765,1752886244514,-460.0,0.00017534,2]
[373152766,1752886244523,-460.0,0.00017534,2]
[373152767,1752886244532,-460.0,0.00017534,2]
[373152768,1752886244541,-460.0,0.00017534,2]
[373152769,1752886244551,-460.0,0.00017534,2]
[373152770,1752886244560,-460.0,0.00017534,2]
[373152771,1752886244569,-460.0,0.00017534,2]
[373152772,1752886244581,-460.0,0.00017534,2]
[373152773,1752886244591,-460.0,0.00017534,2]
[373152774,1752886244690,-460.0,0.00017534,2]
[373152775,1752886244700,-460.0,0.00017534,2]
[373152776,1752886244712,-1302.06,0.00017534,2]
[373152777,1752886244724,-460.0,0.00017534,2]
[373152778,1752886244734,-460.0,0.00017534,2]
[373152779,1752886244743,-460.0,0.00017534,2]
[373152780,1752886244752,-183.16881764,0.00017534,2]
[373152781,1752886244762,-460.0,0.00017534,2]
[373152782,1752886244771,-460.0,0.00017534,2]
[373152783,1752886244781,-460.0,0.00017534,2]
[373152784,1752886244790,-291.26244911,0.00017534,2]
[373152785,1752886244800,-460.0,0.00017534,2]
[373152787,1752886244809,-460.0,0.00017534,2]
[373152789,1752886244818,-460.0,0.00017534,2]
[373152791,1752886244829,-460.0,0.00017534,2]
[373152792,1752886244838,-460.0,0.00017534,2]
[373152793,1752886244848,-460.0,0.00017534,2]
[373152794,1752886244857,-460.0,0.00017534,2]
[373152795,1752886244869,-460.0,0.00017534,2]
[373152796,1752886244879,-460.0,0.00017534,2]
[373152797,1752886244888,-1036.57,0.00017534,2]
[373152798,1752886244898,-460.0,0.00017534,2]
[373152799,1752886244907,-460.0,0.00017534,2]
[373152800,1752886244916,-460.0,0.00017534,2]
[373152801,1752886244925,-516.59,0.00017534,2]
[373152802,1752886244935,-460.0,0.00017534,2]
[373152803,1752886244944,-1224.83,0.00017534,2]
[373152804,1752886244955,-460.0,0.00017534,2]
[373152805,1752886244964,-1354.52,0.00017534,2]
[373152806,1752886244974,-460.0,0.00017534,2]
[373152807,1752886244983,-460.0,0.00017534,2]
[373152808,1752886244992,-813.15,0.00017534,2]
[373152809,1752886245001,-460.0,0.00017534,2]
[373152810,1752886245011,-3359.4,0.00017534,2]
[373152811,1752886245020,-460.0,0.00017534,2]
[373152812,1752886245029,-460.0,0.00017534,2]
[373152813,1752886245039,-2239.47,0.00017534,2]
[373152814,1752886245048,-460.0,0.00017534,2]
[373152815,1752886245058,-460.0,0.00017534,2]
[373152816,1752886245068,-1200.61,0.00017534,2]
[373152817,1752886245077,-460.0,0.00017534,2]
[373152818,1752886245088,-460.0,0.00017534,2]
[373152819,1752886245097,-460.0,0.00017534,2]
[373152820,1752886245107,-484.74,0.00017534,2]
[373152821,1752886245117,-460.0,0.00017534,2]
[373152822,1752886245127,-500.0,0.00017544,2]
[373152823,1752886245136,-500.22460265,0.00017544,2]
[373152824,1752886245145,-279.74611085,0.00017622,2]
[373152825,1752886245156,-207.4,0.00017782,2]
[373152826,1752886245166,-151.0,0.00017782,2]
[373152827,1752886245176,-151.0,0.00017782,2]
[373152828,1752886245186,-151.0,0.00017782,2]
[373152829,1752886245195,-151.0,0.00017782,2]
[373152830,1752886245205,-283.57159003,0.00017782,2]
[373152831,1752886245214,-151.0,0.00017782,2]
[373152832,1752886245225,-3801.642,0.00017782,2]
[373152833,1752886245234,-217.07464614,0.00017782,2]
[373152834,1752886245244,-151.0,0.00017782,2]
[373152835,1752886245253,-151.0,0.00017782,2]
[373152836,1752886245264,-151.0,0.00017782,2]
[373152837,1752886245273,-151.0,0.00017782,2]
[373152838,1752886245282,-151.0,0.00017782,2]
[373152839,1752886245292,-151.0,0.00017782,2]
[373152840,1752886245302,-151.0,0.00017782,2]
[373152841,1752886245311,-151.0,0.00017782,2]
[373152842,1752886245322,-151.0,0.00017782,2]
[373152843,1752886245334,-151.0,0.00017782,2]
[373152844,1752886245344,-151.0,0.00017782,2]
[373152845,1752886245354,-151.0,0.00017782,2]
[373152846,1752886245363,-151.0,0.00017782,2]
[373152847,1752886245373,-151.0,0.00017782,2]
[373152848,1752886245383,-151.0,0.00017782,2]
[373152849,1752886245392,-151.0,0.00017782,2]
[373152850,1752886245405,-25000.0,0.00017782,2]
[373152851,1752886245415,-1000.26175483,0.00017782,2]
[373152852,1752886245424,-460.0,0.00017807,2]
[373152853,1752886245435,-460.0,0.00017807,2]
[373152854,1752886245444,-1157.36,0.00017808,2]
[373152855,1752886245453,-460.0,0.00017808,2]
[373152856,1752886245463,-460.0,0.00017808,2]
[373152857,1752886245474,-460.0,0.00017808,2]
[373152858,1752886245483,-507.42949218,0.00017808,2]
[373152859,1752886245492,-460.0,0.00017808,2]
[373152860,1752886245502,-460.0,0.00017808,2]
[373152861,1752886245511,-460.0,0.00017808,2]
[373152862,1752886245521,-460.0,0.00017808,2]
[373152863,1752886245530,-917.31,0.00017808,2]
[373152864,1752886245539,-460.0,0.00017808,2]
[373152865,1752886245549,-460.0,0.00017808,2]
[373152866,1752886245558,-460.0,0.00017808,2]
[373152867,1752886245571,-460.0,0.00017808,2]
[373152868,1752886245580,-460.0,0.00017808,2]
[373152869,1752886245590,-460.0,0.00017808,2]
[373152870,1752886245601,-460.0,0.00017808,2]
[373152871,1752886245610,-1094.52,0.00017808,2]
[373152872,1752886245619,-1520.39,0.00017808,2]
[373152873,1752886245629,-460.0,0.00017808,2]
[373152874,1752886245638,-694.12,0.00017808,2]
[373152875,1752886245647,-460.0,0.00017808,2]
[373152876,1752886245657,-473.39,0.00017808,2]
[373152877,1752886245666,-2534.46,0.00017808,2]
[373152878,1752886245676,-341.93330316,0.00017808,2]
[373152879,1752886245685,-460.0,0.00017808,2]
[373152880,1752886245694,-460.0,0.00017808,2]
[373152881,1752886245704,-460.0,0.00017808,2]
[373152882,1752886245713,-460.0,0.00017808,2]
[373152883,1752886245723,-460.0,0.00017808,2]
[373152884,1752886245732,-460.0,0.00017808,2]
[373152885,1752886245741,-460.0,0.00017808,2]
[373152886,1752886245751,-460.0,0.00017808,2]
[373152887,1752886245760,-460.0,0.00017808,2]
[373152888,1752886245769,-1302.06,0.00017808,2]
[373152889,1752886245779,-460.0,0.00017808,2]
[373152890,1752886245788,-460.0,0.00017808,2]
[373152891,1752886245797,-460.0,0.00017808,2]
[373152892,1752886245806,-460.0,0.00017808,2]
[373152893,1752886245815,-460.0,0.00017808,2]
[373152894,1752886245825,-460.0,0.00017808,2]
[373152895,1752886245835,-460.0,0.00017808,2]
[373152896,1752886245845,-460.0,0.00017808,2]
[373152897,1752886245854,-460.0,0.00017808,2]
[373152898,1752886245867,-460.0,0.00017808,2]
[373152899,1752886245876,-460.0,0.00017808,2]
[373152900,1752886245886,-242.21955512,0.00017808,2]
[373152901,1752886245895,-460.0,0.00017808,2]
[373152902,1752886245906,-460.0,0.00017808,2]
[373152903,1752886245916,-460.0,0.00017808,2]
[373152904,1752886245926,-1036.57,0.00017808,2]
[373152905,1752886245937,-460.0,0.00017808,2]
[373152906,1752886245946,-159.61854329,0.00017808,2]
[373152907,1752886245957,-460.0,0.00017808,2]
[373152908,1752886245968,-516.59,0.00017808,2]
[373152909,1752886245976,-460.0,0.00017808,2]
[373152910,1752886245986,-1224.83,0.00017808,2]
[373152911,1752886245995,-460.0,0.00017808,2]
[373152913,1752886246004,-1354.52,0.00017808,2]
[373152914,1752886246013,-460.0,0.00017808,2]
[373152915,1752886246024,-460.0,0.00017808,2]
[373152916,1752886246033,-813.15,0.00017808,2]
[373152917,1752886246043,-460.0,0.00017808,2]
[373152918,1752886246052,-3359.4,0.00017808,2]
[373152920,1752886246061,-460.0,0.00017808,2]
[373152921,1752886246071,-460.0,0.00017808,2]
[373152922,1752886246080,-2239.47,0.00017808,2]
[373152923,1752886246090,-460.0,0.00017808,2]
[373152924,1752886246099,-460.0,0.00017808,2]
[373152925,1752886246109,-460.0,0.00017808,2]
[373152926,1752886246119,-1200.61,0.00017808,2]
[373152927,1752886246129,-460.0,0.00017808,2]
[373152928,1752886246139,-460.0,0.00017808,2]
[373152929,1752886246150,-484.74,0.00017808,2]
[373152930,1752886246160,-1001.3739625,0.00017836,2]
[373152932,1752886246171,-1000.0,0.00017836,2]
[373152933,1752886246181,-3048.14937814,0.00017837,2]
[373152934,1752886246191,-1000.0,0.00017882,2]
[373152935,1752886246201,-2598.40782075,0.000179,2]
[373152936,1752886246211,-1680.0,0.00017962,2]
[373152938,1752886246221,-420.0,0.00017963,2]
[373152939,1752886246230,-228.11352469,0.00017995,2]
[373152940,1752886246240,-563.3007581,0.00017998,2]
[373152941,1752886246249,-501.83548984,0.00017998,2]
[373152942,1752886246258,-301.60066525,0.00017998,2]
[373152943,1752886246270,-500.32697435,0.00017998,2]
[373152945,1752886246280,-1000.0,0.00017998,2]
[373152946,1752886246290,-1000.0,0.00017998,2]
[373152947,1752886246299,-325.67799537,0.00017998,2]
[373152948,1752886246308,-1000.0,0.00017998,2]
[373152949,1752886246318,-1000.0,0.00017998,2]
[373152950,1752886246327,-710.83511071,0.00017998,2]
[373152951,1752886246340,-500.0,0.00018029,2]
[373152952,1752886246350,-1000.0,0.00018029,2]
[373152953,1752886246359,-500.68768249,0.00018033,2]
[373152954,1752886246368,-1000.0,0.00018046,2]
[373152955,1752886246378,-460.0,0.00018081,2]
[373152956,1752886246387,-460.0,0.00018081,2]
[373152957,1752886246400,-1157.36,0.00018082,2]
[373152958,1752886246409,-460.0,0.00018082,2]
[373152959,1752886246419,-460.0,0.00018082,2]
[373152960,1752886246428,-460.0,0.00018082,2]
[373152962,1752886246438,-460.0,0.00018082,2]
[373152964,1752886246448,-460.0,0.00018082,2]
[373152966,1752886246457,-917.31,0.00018082,2]
[373152968,1752886246468,-460.0,0.00018082,2]
[373152970,1752886246478,-460.0,0.00018082,2]
[373152972,1752886246487,-460.0,0.00018082,2]
[373152974,1752886246496,-460.0,0.00018082,2]
[373152976,1752886246506,-460.0,0.00018082,2]
[373152978,1752886246515,-460.0,0.00018082,2]
[373152980,1752886246524,-460.0,0.00018082,2]
[373152983,1752886246534,-1094.52,0.00018082,2]
[373152985,1752886246543,-1520.39,0.00018082,2]
[373152987,1752886246552,-460.0,0.00018082,2]
[373152989,1752886246562,-694.12,0.00018082,2]
[373152991,1752886246574,-460.0,0.00018082,2]
[373152992,1752886246585,-473.39,0.00018082,2]
[373152993,1752886246595,-2534.46,0.00018082,2]
[373152994,1752886246604,-460.0,0.00018082,2]
[373152995,1752886246613,-460.0,0.00018082,2]
[373152996,1752886246624,-460.0,0.00018082,2]
[373152997,1752886246633,-529.22445917,0.00018082,2]
[373152998,1752886246643,-460.0,0.00018082,2]
[373152999,1752886246652,-460.0,0.00018082,2]